bitfinex/quotes_ETHUSD_20251224
["timestamp","ask_amount","ask_price","bid_price","bid_amount"]
[1766602750441,0.002,2942.4,2941.9,0.03399163]
[1766602750621,0.002,2942.4,2942.0,3.39904826]
[1766602750821,0.002,2942.4,2942.1,0.03398932]
[1766602751213,1.02233354,2942.6,2942.1,0.03398932]
[1766602751615,2.27733354,2942.6,2942.1,0.03398932]
[1766602751828,1.255,2942.5,2942.1,0.03398932]
[1766602753252,1.255,2942.5,2942.1,3.43291314]
[1766602754147,1.255,2943.1,2942.1,8.40604934]
[1766602754446,1.255,2943.1,2942.2,1.02013231]
[1766602754644,1.255,2943.1,2942.3,0.03398701]
[1766602755049,0.04247366,2943.0,2942.3,0.03398701]
[1766602755344,0.04247366,2943.0,2942.5,3.39847068]
[1766602755545,0.04247366,2943.0,2942.6,0.03398355]
[1766602755944,1.29747366,2943.0,2942.7,1.02009762]
[1766602764080,1.29747366,2943.0,2942.6,0.03398355]
[1766602764227,1.29747366,2943.0,2942.6,3.43232586]
[1766602764426,1.29747366,2943.0,2942.6,4.45242348]
[1766602764655,1.29747366,2943.0,2942.6,3.43232586]
[1766602765629,1.29747366,2943.0,2942.6,3.43332586]
[1766602765832,1.29947366,2943.0,2942.6,3.43332586]
[1766602771976,1.29947366,2943.0,2942.6,0.03498355]
[1766602773644,1.29947366,2943.0,2942.6,0.001]
[1766602774347,1.2871,2942.9,2942.6,0.001]
[1766602783266,1.2891,2942.9,2942.6,0.001]
[1766602786866,0.04247655,2942.8,2942.6,0.001]
[1766602787268,1.2613,2942.8,2942.6,0.001]
[1766602790557,0.04247799,2942.7,2941.8,0.001]
[1766602790763,1.2613,2942.6,2942.0,3.3989875]
[1766602790971,3.39813312,2942.8,2942.0,3.3989875]
[1766602790972,1.2613,2942.4,2942.0,3.3989875]
[1766602791182,1.30378377,2942.3,2942.1,0.03398932]
[1766602791367,1.2613,2942.3,2942.0,0.03399048]
[1766602792578,1.2613,2942.6,2942.0,0.03399048]
[1766602792773,1.48946231,2942.6,2942.0,0.03399048]
[1766602793849,1.48946231,2942.6,2942.1,3.39893273]
[1766602795083,1.53194174,2942.6,2942.0,3.43298132]
[1766602795382,1.48946231,2942.6,2942.0,3.43298132]
[1766602795574,1.53194174,2942.6,2942.0,3.43298132]
[1766602795880,1.2613,2942.4,2942.0,3.43298132]
[1766602799379,1.2613,2942.6,2942.0,6.83202958]
[1766602799682,1.2613,2942.6,2942.0,6.7990391]
[1766602800407,1.2613,2942.6,2942.0,3.39999084]
[1766602800690,1.2613,2942.6,2942.1,0.03398932]
[1766602801688,1.2613,2942.6,2942.1,3.43287752]
[1766602802275,1.2613,2942.6,2942.1,6.83181025]
[1766602802589,2.38697108,2942.8,2942.1,7.57010196]
[1766602802756,1.3667,2942.8,2942.1,7.57010196]
[1766602803589,1.3667,2942.8,2942.2,0.03398817]
[1766602803787,1.3667,2942.8,2942.4,6.79717236]
[1766602804088,0.002,2942.9,2942.5,0.0339847]
[1766602804492,0.002,2943.0,2942.5,0.80610041]
[1766602805192,1.3687,2943.0,2942.5,0.0339847]
[1766602805991,1.3687,2943.0,2942.6,3.39835519]
[1766602807089,1.3687,2943.0,2942.7,0.03398239]
[1766602807384,1.3687,2943.0,2942.6,0.03398355]
[1766602807594,0.002,2943.0,2942.6,0.03398355]
[1766602808295,0.002,2943.0,2942.6,3.43225176]
[1766602809876,0.002,2943.2,2942.6,4.11532167]
[1766602810075,0.002,2943.2,2942.8,3.39812423]
[1766602810394,0.002,2943.2,2942.8,3.43210547]
[1766602810574,0.002,2943.2,2942.8,0.03398124]
[1766602811264,1.3687,2943.2,2942.8,0.03398124]
[1766602811866,1.3687,2943.2,2942.8,3.43209578]
[1766602813110,1.40917222,2943.1,2942.8,0.03398124]
[1766602816603,1.41117222,2943.1,2942.8,0.03398124]
[1766602819014,1.41117222,2943.1,2942.3,1.02006293]
[1766602819215,1.3667,2943.0,2942.3,3.3986815]
[1766602819400,1.4091751,2942.9,2942.4,3.40701232]
[1766602819707,1.4091751,2942.9,2942.4,3.39852813]
[1766602821229,1.4091751,2942.9,2942.2,3.3987813]
[1766602821688,1.4091751,2942.9,2942.2,6.79759851]
[1766602822505,1.4091751,2942.9,2942.2,3.3987813]
[1766602822714,1.3667,2942.8,2942.2,3.3987813]
[1766602824015,1.3667,2942.8,2942.2,6.79759851]
[1766602826114,1.3667,2942.8,2942.2,3.3987813]
[1766602827118,1.3667,2942.8,2942.2,6.79759851]
[1766602835649,0.002,2942.9,2942.6,4.82051559]
[1766602835805,0.002,2943.1,2942.7,0.49053228]
[1766602836133,0.893,2943.2,2942.8,0.03398124]
[1766602836335,0.03400174,2943.1,2942.7,3.43216739]
[1766602836625,0.03600174,2943.3,2942.7,3.43216739]
[1766602836837,1.44960174,2943.3,2942.7,0.03398239]
[1766602837933,0.71221352,2943.3,2942.7,0.03398239]
[1766602838236,1.4136,2943.2,2942.7,0.03398239]
[1766602838410,0.03400174,2943.1,2942.7,0.03398239]
[1766602839330,1.44760174,2943.1,2942.7,0.03398239]
[1766602841529,3.39778469,2943.1,2942.2,1.02007334]
[1766602841730,1.4136,2942.9,2942.3,3.39869739]
[1766602842031,1.4136,2942.7,2942.2,0.03398817]
[1766602842247,1.386,2942.5,2942.1,0.03498932]
[1766602842445,0.92500174,2942.6,2942.1,0.03498932]
[1766602842446,1.42000174,2942.4,2942.1,0.03498932]
[1766602843050,1.386,2942.4,2942.1,0.03498932]
[1766602844533,0.891,2942.6,2942.1,0.001]
[1766602844534,1.42000174,2942.3,2942.1,0.001]
[1766602844921,0.03400174,2942.2,2941.8,3.40022593]
[1766602845115,1.386,2942.1,2941.8,3.40022593]
[1766602845555,1.386,2942.1,2941.9,3.39915356]
[1766602845870,1.386,2942.1,2941.8,0.001]
[1766602846014,1.386,2941.9,2941.6,0.001]
[1766602846222,1.42000174,2941.8,2941.6,0.001]
[1766602846569,1.42000174,2941.8,2941.4,0.001]
[1766602846917,1.42000174,2941.8,2941.1,0.001]
[1766602846918,1.386,2941.7,2941.1,0.001]
[1766602847117,1.386,2941.5,2941.1,0.001]
[1766602847552,1.42000174,2941.4,2941.1,0.001]
[1766602848321,1.42000174,2941.4,2941.0,0.03500204]
[1766602848650,1.386,2942.6,2941.4,0.3431]
[1766602848856,1.386,2942.1,2941.4,0.37709741]
[1766602849023,1.386,2941.9,2941.1,0.3461]
[1766602850365,1.386,2941.9,2941.3,0.349]
[1766602850567,1.386,2941.9,2941.4,0.38299741]
[1766602851360,1.386,2941.9,2941.4,3.78273262]
[1766602851527,1.386,2941.9,2941.4,0.38299741]
[1766602852423,1.386,2941.9,2941.4,0.03399741]
[1766602853124,1.386,2941.9,2941.2,3.39993584]
[1766602853323,1.386,2941.9,2941.3,0.03399857]
[1766602854925,1.386,2941.9,2941.3,3.43385478]
[1766602855858,1.386,2941.9,2941.4,0.001]
[1766602856229,1.388,2941.9,2941.4,0.001]
[1766602858044,1.388,2941.9,2941.1,3.40005099]
[1766602858331,1.386,2941.7,2941.2,0.03399972]
[1766602858530,1.386,2941.7,2941.2,3.43397196]
[1766602859662,1.386,2941.7,2941.2,0.03399972]
[1766602859863,1.386,2941.7,2941.0,3.40115311]
[1766602860367,1.386,2941.6,2941.1,3.43400366]
[1766602860531,1.386,2941.6,2941.2,3.39992124]
[1766602860737,1.386,2941.6,2941.3,0.03399857]
[1766602861734,1.386,2941.6,2941.3,3.43383986]
[1766602862875,1.386,2941.6,2941.3,0.03399857]
[1766602863585,1.386,2941.6,2941.3,0.03499857]
[1766602863785,1.386,2941.6,2941.3,3.43484688]
[1766602863955,1.318,2941.8,2941.3,4.1866938]
[1766602864484,0.894,2941.9,2941.4,0.39]
[1766602864655,0.894,2941.9,2941.5,0.42399626]
[1766602865560,1.318,2941.8,2941.5,0.03399626]
[1766602865881,1.318,2941.8,2941.3,0.001]
[1766602866083,1.318,2941.8,2941.3,0.40945418]
[1766602866386,1.318,2941.8,2941.3,0.001]
[1766602871973,1.32,2941.8,2941.3,0.001]
[1766602872876,1.32,2941.8,2941.3,0.03499857]
[1766602873696,1.32,2941.8,2941.3,0.001]
[1766602882643,1.318,2942.6,2941.7,0.4258]
[1766602882795,2.21,2942.5,2941.7,0.4258]
[1766602883729,2.21,2942.5,2941.9,0.4278]
[1766602884207,1.318,2942.4,2941.7,0.03399394]
[1766602885633,1.318,2942.4,2941.7,3.43328441]
[1766602885837,1.318,2942.3,2941.7,3.43328441]
[1766602886397,1.318,2942.3,2941.7,6.83267931]
[1766602886707,1.318,2942.3,2941.7,6.79868537]
[1766602888205,1.318,2942.3,2941.8,3.43320621]
[1766602890635,1.318,2942.3,2941.8,0.03399279]
[1766602890805,1.318,2942.2,2941.7,0.03399394]
[1766602891006,1.318,2942.2,2941.8,3.39926638]
[1766602892141,1.318,2942.2,2941.7,3.43334616]
[1766602896542,1.32,2942.2,2941.7,3.43334616]
[1766602901143,1.32,2942.2,2941.7,6.83274106]
[1766602901443,1.32,2942.2,2941.7,7.48202123]
[1766602902644,1.32,2942.2,2941.7,4.08262633]
[1766602902848,1.3448,2942.4,2941.9,0.4625]
[1766602903448,1.3448,2942.4,2941.7,6.79874712]
[1766602904324,0.002,2942.2,2941.7,6.79874712]
[1766602904625,0.002,2942.2,2941.8,3.43321969]
[1766602910043,1.3448,2942.2,2941.8,3.43321969]
[1766602910766,1.3448,2942.2,2941.8,6.83249904]
[1766602910944,1.3448,2942.2,2941.8,7.48175615]
[1766602911144,0.002,2942.2,2941.8,7.95745615]
[1766602911888,0.002,2942.2,2941.9,0.4757]
[1766602912166,0.002,2942.2,2942.0,0.03399048]
[1766602912936,1.3448,2942.4,2942.0,0.03399048]
[1766602912937,0.002,2942.4,2942.0,3.90951056]
[1766602915767,1.3448,2942.4,2942.0,0.03399048]
[1766602917675,1.3448,2942.4,2942.0,3.43303602]
[1766602919575,1.3448,2942.4,2942.0,0.03399048]
[1766602919779,1.3428,2942.2,2941.8,3.39921865]
[1766602920079,1.37679048,2942.1,2941.8,3.39921865]
[1766602921971,1.37679048,2942.1,2941.7,3.4333294]
[1766602922178,1.37679048,2942.1,2941.7,0.03399394]
[1766602922377,1.3774,2942.0,2941.6,0.001]
[1766602922577,1.3774,2941.8,2941.4,3.39965174]
[1766602922878,1.3774,2941.8,2941.5,3.39962267]
[1766602923381,1.3774,2941.8,2941.6,3.39950723]
[1766602923588,1.3774,2941.8,2941.5,3.39956254]
[1766602924078,1.3774,2941.8,2941.3,6.8007144]
[1766602924285,1.3774,2941.8,2941.3,7.53335584]
[1766602924871,1.3774,2941.8,2941.3,8.06025584]
[1766602925070,1.3774,2941.8,2941.4,0.03399741]
[1766602925380,1.41139048,2942.0,2941.4,0.03399741]
[1766602926381,1.41139048,2942.0,2941.3,7.3276144]
[1766602927260,1.41139048,2942.0,2941.4,0.03399741]
[1766602929076,1.41139048,2942.0,2941.5,3.39962604]
[1766602929280,1.41139048,2942.0,2941.6,0.0339951]
[1766602932587,1.3774,2941.8,2941.4,3.39969125]
[1766602933371,0.891,2942.1,2941.3,3.40084889]
[1766602933372,0.03399048,2941.7,2941.3,3.40084889]
[1766602933671,1.3774,2941.7,2941.3,0.001]
[1766602937990,1.3774,2941.7,2941.3,0.03499857]
[1766602938173,0.03399048,2942.0,2941.5,1.4477]
[1766602938372,0.03399048,2942.0,2941.6,3.39951047]
[1766602938572,0.03399048,2942.0,2941.6,4.84721047]
[1766602938777,0.892,2942.0,2941.7,0.03399394]
[1766602939070,0.892,2942.0,2941.7,1.48169394]
[1766602939274,0.892,2942.0,2941.7,1.4477]
[1766602939500,0.892,2942.0,2941.6,0.0339951]
[1766602940662,0.892,2942.0,2941.6,3.43350124]
[1766602942872,0.892,2942.0,2941.6,4.88120124]
[1766602943500,0.894,2942.0,2941.6,4.88120124]
[1766602952328,0.002,2942.0,2941.7,1.407]
[1766602952477,0.002,2942.4,2941.9,1.407]
[1766602952815,8.22480696,2943.0,2942.1,1.407]
[1766602952816,1.4722,2942.8,2942.1,1.407]
[1766602952990,1.4722,2942.8,2942.3,1.407]
[1766602953309,0.03399048,2942.7,2942.3,1.407]
[1766602953501,1.4722,2942.8,2942.3,1.407]
[1766602953698,1.4722,2942.8,2942.3,1.44098701]
[1766602954007,1.4722,2942.8,2942.3,4.83964365]
[1766602955411,0.03399048,2942.7,2942.3,1.44098701]
[1766602955580,0.03399048,2942.7,2942.3,1.407]
[1766602956107,1.50619048,2942.7,2942.0,4.80603296]
[1766602956301,1.50619048,2942.7,2942.0,5.66055088]
[1766602956609,1.50619048,2942.7,2942.0,4.25355088]
[1766602956810,1.50619048,2942.7,2942.1,1.407]
[1766602957378,1.50619048,2942.7,2942.0,0.03399048]
[1766602957379,8.25716776,2942.7,2942.0,0.03399048]
[1766602957717,1.4722,2942.5,2941.8,0.03399279]
[1766602958001,1.4722,2942.3,2941.8,0.03399279]
[1766602959607,1.4722,2942.3,2941.9,3.3991638]
[1766602960113,1.4722,2942.3,2941.9,3.43315543]
[1766602961194,1.4722,2942.3,2941.8,3.39924751]
[1766602961391,0.03399048,2942.2,2941.8,3.4332403]
[1766602964121,0.03399048,2942.2,2941.8,6.83251965]
[1766602964323,0.03399048,2942.2,2941.8,7.62247883]
[1766602964824,1.4722,2942.3,2941.8,7.62247883]
[1766602965813,0.03399048,2942.2,2941.8,3.39924751]
[1766602966111,0.03399048,2942.2,2941.8,3.4332403]
[1766602968013,0.03599048,2942.2,2941.8,3.4332403]
[1766602969817,0.002,2942.2,2941.8,3.4332403]
[1766602971006,0.002,2942.2,2941.8,6.83251965]
[1766602971206,0.002,2942.2,2941.8,6.79852686]
[1766602971986,0.002,2942.2,2941.8,3.39924751]
[1766602972186,0.002,2942.2,2941.8,3.4332403]
[1766602974622,0.002,2943.2,2942.3,1.451]
[1766602974818,0.002,2943.2,2942.2,0.06467094]
[1766602974819,0.002,2943.2,2942.5,1.451]
[1766602975115,1.5144,2943.0,2942.5,1.451]
[1766602975421,1.5144,2943.0,2942.5,1.58702226]
[1766602977224,1.5144,2943.0,2942.5,4.985383]
[1766602977806,1.5144,2943.0,2942.5,3.534383]
[1766602979625,0.893,2943.0,2942.5,3.534383]
[1766602979834,1.5124,2942.9,2942.5,3.534383]
[1766602980611,0.893,2943.0,2942.6,1.451]
[1766602980924,0.893,2943.0,2942.7,0.03398239]
[1766602982025,0.002,2943.0,2942.7,3.43219032]
[1766602982216,0.893,2943.0,2942.7,3.43219032]
[1766602983392,0.002,2943.2,2942.9,1.4648]
[1766602983595,1e-08,2943.4,2943.0,1.4648]
[1766602983809,0.002,2943.5,2943.1,1.49877777]
[1766602984395,0.002,2943.5,2943.1,2.51873666]
[1766602984818,0.002,2943.5,2943.1,1.05393666]
[1766602985016,1.421,2943.5,2942.8,3.39805969]
[1766602985794,1.421,2943.5,2942.9,3.39800864]
[1766602986030,1.421,2943.5,2942.7,5.88309365]
[1766602986329,1.419,2943.4,2942.7,4.8629995]
[1766602986507,1.419,2943.4,2942.7,4.89698189]
[1766602987941,1.419,2943.2,2942.6,1.02009415]
[1766602988109,1.419,2942.7,2941.9,1.4648]
[1766602988307,1.419,2942.7,2942.2,1.4648]
[1766602988512,1.419,2942.7,2942.3,0.03398701]
[1766602988715,1.45298239,2942.9,2942.3,1.49878701]
[1766602991238,1.45298239,2942.9,2942.3,1.49978701]
[1766602991426,1.45298239,2942.9,2942.3,4.89846423]
[1766602991806,2.34398239,2942.9,2942.3,4.89846423]
[1766602994536,2.34398239,2942.9,2942.3,1.49978701]
[1766602995831,0.92498239,2942.9,2942.3,1.49978701]
[1766602996036,1.419,2942.8,2942.3,1.4658]
[1766602996238,0.03398239,2942.7,2942.3,0.001]
[1766602999538,0.03398239,2942.8,2942.3,1.4658]
[1766602999704,0.03398239,2942.8,2942.4,1.49878586]
[1766603000236,0.92498239,2942.9,2942.4,1.49878586]
[1766603000737,0.03398239,2942.9,2942.4,1.49878586]
[1766603000937,1.419,2943.3,2942.5,1.4648]
[1766603001237,0.002,2943.4,2942.7,1.4648]
[1766603001439,0.002,2943.4,2942.5,4.8223997]
[1766603001440,0.893,2943.6,2942.9,1.4648]
[1766603001640,0.893,2943.6,2943.1,1.4648]
[1766603002765,1.419,2943.5,2942.5,4.86317577]
[1766603002946,1.419,2943.3,2942.6,0.03398355]
[1766603003244,2.31,2943.2,2942.6,0.03398355]
[1766603003806,2.31,2943.2,2942.6,1.49878355]
[1766603004039,0.891,2943.2,2942.6,1.49878355]
[1766603004248,0.891,2943.2,2942.8,1.4648]
[1766603004538,0.891,2943.4,2942.9,1.4648]
[1766603005119,1.421,2943.6,2943.0,1.49877893]
[1766603005320,2.312,2943.6,2943.0,1.49877893]
[1766603005628,2.312,2943.6,2943.0,1.4648]
[1766603006242,1.419,2943.5,2943.0,1.4648]
[1766603007520,1.419,2943.5,2942.8,3.39812423]
[1766603007719,1.419,2943.5,2942.9,0.76258897]
[1766603008850,1.421,2943.6,2943.0,1.4648]
[1766603009028,1.419,2943.5,2943.0,0.03397893]
[1766603009236,1.419,2943.5,2942.8,4.86292423]
[1766603010045,1.419,2943.5,2942.9,0.03398008]
[1766603013356,1.419,2943.5,2942.9,3.43195575]
[1766603014549,1.419,2943.5,2942.9,3.43295575]
[1766603016453,1.419,2943.5,2942.9,0.03498008]
[1766603017159,1.419,2943.5,2942.9,3.43297472]
[1766603017961,1.419,2943.5,2942.9,0.03498008]
[1766603019064,1.419,2943.5,2942.9,3.43296934]
[1766603021661,1.419,2943.5,2942.9,0.03498008]
[1766603021961,1.566,2943.4,2942.9,0.03498008]
[1766603022256,1.566,2943.4,2942.9,3.43298835]
[1766603023860,1.566,2943.4,2942.9,0.03498008]
[1766603024030,5.00771167,2943.6,2942.9,1.62048008]
[1766603025761,5.00771167,2943.6,2942.9,5.01848792]
[1766603025962,5.84858007,2943.6,2942.9,5.01848792]
[1766603026363,2.4513684,2943.6,2942.9,5.01848792]
[1766603026560,2.4513684,2943.6,2942.9,3.43298792]
[1766603026866,2.4513684,2943.6,2943.0,1.5855]
[1766603029470,1.6085,2943.5,2943.0,1.5855]
[1766603030140,1.6085,2943.5,2943.0,4.98338518]
[1766603031441,1.6085,2943.5,2943.0,1.5855]
[1766603031966,0.002,2943.6,2943.1,1.5855]
[1766603032774,1.6105,2943.6,2943.1,1.5855]
[1766603033064,2.11165927,2943.6,2943.1,1.5855]
[1766603036372,1.6085,2943.5,2942.9,0.03498008]
[1766603036676,1.6085,2943.5,2942.9,0.001]
[1766603037574,5.00587415,2943.5,2942.9,0.001]
[1766603038751,1.6085,2943.5,2942.9,0.001]
[1766603039575,1.6085,2943.5,2942.9,0.03498008]
[1766603041044,1.6085,2943.5,2942.9,3.43298578]
[1766603041875,1.6085,2943.5,2942.9,5.05438578]
[1766603042064,1.6085,2943.5,2942.9,1.65638008]
[1766603042877,0.002,2943.5,2943.0,1.6214]
[1766603043174,0.002,2943.5,2943.1,1.65537777]
[1766603043373,0.002,2943.5,2943.1,1.6214]
[1766603049884,0.002,2943.5,2942.4,3.88841322]
[1766603049885,5.7133997,2943.4,2942.6,1.6224]
[1766603050199,1.61,2943.0,2942.3,0.001]
[1766603050557,1.61,2942.9,2942.3,0.03498701]
[1766603050960,1.61,2942.9,2942.3,3.43365919]
[1766603052491,1.61,2942.8,2942.3,0.001]
[1766603054087,1.61,2942.8,2942.3,0.03498701]
[1766603055290,1.61,2942.8,2942.3,3.43368528]
[1766603057391,1.61,2942.8,2942.3,0.03498701]
[1766603057598,1.61,2942.8,2942.3,5.05507829]
[1766603057908,3.39758737,2943.3,2942.3,5.05507829]
[1766603057909,0.002,2943.5,2942.5,1.6214]
[1766603058206,0.002,2943.5,2942.6,1.65538355]
[1766603059396,3.39931736,2943.5,2942.7,3.39823971]
[1766603059575,5.00931736,2943.5,2942.9,1.6214]
[1766603059894,5.00931736,2943.5,2943.0,0.03397893]
[1766603060094,5.39788898,2943.5,2943.0,0.03397893]
[1766603061296,2.00057162,2943.5,2943.0,0.03397893]
[1766603064200,2.00057162,2943.5,2943.0,0.001]
[1766603064201,5.39788776,2943.5,2943.0,0.001]
[1766603064407,1.61,2943.4,2943.0,0.001]
[1766603065605,1.61,2943.4,2943.0,0.03497893]
[1766603069603,0.002,2943.5,2943.0,3.43286574]
[1766603069914,0.002,2943.5,2943.1,1.6214]
[1766603073720,0.002,2943.6,2943.1,0.50543312]
[1766603073889,0.002,2943.6,2943.2,1.64457662]
[1766603075910,1.6277,2943.6,2943.2,0.03397662]
[1766603076212,1.6277,2943.6,2943.1,0.03397777]
[1766603079221,1.6277,2943.6,2943.0,1.6116]
[1766603079513,5.02491084,2943.6,2943.0,1.6116]
[1766603079692,0.50269108,2943.5,2943.0,1.6116]
[1766603079896,5.02491084,2943.6,2943.0,1.6116]
[1766603082822,1.5576,2943.4,2943.0,0.001]
[1766603084122,1.5576,2943.3,2943.0,0.001]
[1766603088245,8.21598942,2943.5,2943.0,0.001]
[1766603089534,9.77358942,2943.5,2943.0,0.001]
[1766603089734,1.06665894,2943.4,2943.0,0.001]
[1766603091231,2.62425894,2943.4,2943.0,0.001]
[1766603092123,1.06665894,2943.4,2943.0,1.5606]
[1766603092710,2.62425894,2943.4,2943.0,0.001]
[1766603098226,0.002,2943.5,2943.0,0.001]
[1766603098427,0.002,2943.5,2943.0,1.5606]
[1766603099845,1.5596,2943.5,2943.0,1.5606]
[1766603103543,0.002,2943.5,2943.1,1.58687777]
[1766603103747,0.002,2943.7,2943.3,1.5529]
[1766603104061,0.002,2943.8,2943.2,1.5529]
[1766603104255,0.002,2943.8,2943.4,1.5529]
[1766603105723,0.002,2943.9,2943.5,1.58687316]
[1766603106548,0.002,2943.9,2943.5,4.98417589]
[1766603106757,0.002,2943.9,2943.6,1.5529]
[1766603112955,1.5444,2943.8,2942.8,3.39801164]
[1766603113161,4.81862539,2943.6,2943.1,1.5529]
[1766603113756,2.18090254,2943.7,2943.2,0.03397662]
[1766603114266,2.18090254,2943.7,2943.2,1.58687662]
[1766603117770,2.18090254,2943.7,2943.2,4.98450972]
[1766603117945,1.5444,2943.7,2943.2,4.98450972]
[1766603118142,1.5444,2943.7,2943.2,1.58687662]
[1766603119366,1.5444,2943.7,2943.2,4.98453062]
[1766603119864,0.002,2943.9,2943.2,4.98453062]
[1766603120068,1.5464,2943.9,2943.3,1.5529]
[1766603122888,1.5444,2943.8,2943.3,1.5529]
[1766603123082,2.03873268,2943.8,2943.3,1.5529]
[1766603124379,2.03873268,2943.8,2943.1,0.03497777]
[1766603124580,1.5444,2943.7,2943.1,0.03497777]
[1766603124872,1.5444,2943.7,2943.3,0.001]
[1766603131987,1.4067,2943.6,2943.3,0.001]
[1766603132581,1.4067,2943.5,2943.1,0.001]
[1766603133193,1.4067,2943.5,2943.1,3.39876913]
[1766603133415,1.4067,2943.7,2943.2,0.03397662]
[1766603134093,1.4067,2943.7,2943.2,4.8108238]
[1766603134387,0.49433268,2943.8,2943.3,1.3792]
[1766603136667,1.90103268,2943.8,2943.3,1.3792]
[1766603138495,1.90103268,2943.8,2943.3,1.41317546]
[1766603138700,0.61909038,2943.7,2943.3,1.41317546]
[1766603139298,0.61909038,2943.7,2943.3,1.41417546]
[1766603139794,0.61909038,2943.7,2943.3,1.3802]
[1766603140262,0.61909038,2943.7,2943.3,1.41417546]
[1766603140466,0.61909038,2943.7,2943.3,1.3802]
[1766603141599,0.61909038,2943.7,2943.3,1.41417546]
[1766603142600,0.61909038,2943.7,2943.3,1.3802]
[1766603146083,0.002,2943.9,2943.4,1.5001]
[1766603146285,0.002,2943.9,2943.5,1.53407316]
[1766603153795,0.002,2944.2,2943.6,1.5001]
[1766603154121,0.002,2944.2,2943.8,1.5001]
[1766603154597,0.002,2943.9,2943.8,1.5001]
[1766603156302,0.002,2944.2,2943.8,1.5001]
[1766603156704,0.002,2944.2,2943.8,3.39696372]
[1766603157022,0.002,2944.2,2943.9,1.5001]
[1766603157630,0.002,2944.2,2944.0,1.5001]
[1766603159602,0.891,2944.4,2944.0,1.5001]
[1766603161201,3.398047,2944.6,2944.0,1.5001]
[1766603161402,1.3607,2944.4,2943.8,1.377]
[1766603161705,1.3607,2944.4,2943.5,3.39727308]
[1766603161901,1.3607,2944.4,2943.5,0.8172788]
[1766603162101,1.3607,2944.4,2943.3,4.77550506]
[1766603162314,1.3607,2944.1,2943.3,4.77550506]
[1766603163630,1.3607,2944.1,2943.3,4.77548612]
[1766603163631,3.39663984,2944.1,2943.3,4.77548612]
[1766603163811,1.3607,2944.0,2943.3,4.77548612]
[1766603164011,1.3607,2944.0,2943.4,0.03397431]
[1766603165236,1.3607,2944.0,2943.4,1.41097431]
[1766603166233,1.3607,2943.9,2943.4,1.377]
[1766603170144,1.3607,2943.9,2943.4,1.378]
[1766603173135,1.3607,2943.9,2943.4,0.001]
[1766603181056,0.002,2944.2,2943.5,1.377]
[1766603181280,1.3607,2944.5,2943.7,1.377]
[1766603181577,1.92588039,2944.5,2943.9,1.377]
[1766603181734,0.893,2944.6,2943.9,1.377]
[1766603182165,4.28906112,2944.6,2943.9,1.377]
[1766603182475,4.28906112,2944.6,2944.0,1.377]
[1766603182476,1.3627,2944.6,2944.0,1.377]
[1766603182775,1.3627,2944.6,2944.1,1.41096623]
[1766603187753,0.002,2944.6,2944.1,1.41096623]
[1766603187946,0.002,2944.6,2944.2,1.377]
[1766603190768,1.3627,2944.6,2944.1,0.51483601]
[1766603191072,1.3627,2944.6,2944.1,0.03396623]
[1766603191267,1.3627,2944.6,2944.0,0.03396739]
[1766603193866,0.002,2944.6,2944.1,1.2779]
[1766603194260,4.69045374,2944.6,2944.1,1.2779]
[1766603194763,4.69045374,2944.6,2943.9,1.31286854]
[1766603195439,1.2924,2944.5,2943.9,1.31286854]
[1766603196343,1.2924,2944.5,2943.9,1.78384842]
[1766603196975,1.2924,2944.5,2943.9,5.18065438]
[1766603197775,1.2924,2944.5,2943.9,1.78384842]
[1766603197988,1.2924,2944.5,2943.9,1.31286854]
[1766603198143,1.2924,2944.5,2943.9,3.43179761]
[1766603198349,1.2924,2944.5,2944.0,1.3512]
[1766603198678,1.2924,2944.5,2943.9,3.43179761]
[1766603198679,0.002,2944.6,2944.1,1.38516623]
[1766603200542,1.3512,2944.6,2944.1,1.38516623]
[1766603200876,1.3512,2944.6,2944.1,0.03396623]
[1766603202279,1.3512,2944.6,2944.0,0.03396739]
[1766603203374,1.3492,2944.5,2944.0,0.03396739]
[1766603209584,1.3512,2944.5,2944.0,0.03396739]
[1766603210865,1.3512,2944.5,2944.0,3.4306931]
[1766603212055,1.3512,2944.5,2944.0,4.7818931]
[1766603215791,1.3512,2944.5,2944.0,1.38516739]
[1766603217499,1.3512,2944.5,2944.0,4.78188832]
[1766603218790,1.3512,2944.5,2944.0,4.78288832]
[1766603221385,1.3512,2944.5,2944.0,1.38616739]
[1766603221585,1.3512,2944.5,2944.0,4.78288466]
[1766603222292,1.3512,2944.5,2944.0,5.60096723]
[1766603222593,1.3512,2944.5,2944.0,2.20424996]
[1766603223098,1.3512,2944.5,2944.0,5.60098715]
[1766603223698,1.3512,2944.5,2944.0,2.20424996]
[1766603223991,1.37,2944.2,2943.9,0.001]
[1766603226964,0.002,2944.5,2943.9,0.001]
[1766603226965,1.372,2944.5,2943.9,0.001]
[1766603227597,1.37,2944.4,2943.9,0.001]
[1766603229797,1.37,2944.3,2943.9,0.001]
[1766603230098,0.47663426,2944.2,2943.9,0.001]
[1766603232100,1.37,2944.1,2943.9,0.001]
[1766603236909,0.002,2944.5,2943.9,0.001]
[1766603237108,0.002,2944.5,2943.9,1.3534]
[1766603237419,0.002,2944.5,2944.1,1.3524]
[1766603237713,0.47919886,2944.5,2944.2,0.03396508]
[1766603238492,0.47919886,2944.5,2944.1,1.3524]
[1766603241527,1.84919886,2944.5,2943.9,1.38736854]
[1766603241815,1.84919886,2944.5,2943.9,1.3534]
[1766603241816,5.24537138,2944.5,2943.9,1.3534]
[1766603242996,1.84919886,2944.5,2943.9,1.3534]
[1766603243629,5.24538452,2944.5,2943.9,1.3534]
[1766603243823,1.37,2944.3,2943.9,0.001]
[1766603244024,1.37,2944.1,2943.3,4.75094092]
[1766603244522,1.37,2944.1,2943.9,0.001]